bitfinex-derivatives/quotes_ETHF0:USTF0_20250411
["timestamp","ask_amount","ask_price","bid_price","bid_amount"]
[1744340058430,10.60331651,1537.6,1537.5,1.30169]
[1744340059025,10.60331651,1537.6,1537.5,4.50949]
[1744340059323,10.60331651,1537.6,1537.5,3.2078]
[1744340059614,10.60331651,1537.6,1537.5,4.50949]
[1744340060013,10.60331651,1537.6,1537.4,2.5806]
[1744340060213,10.60331651,1537.6,1537.4,3.8823]
[1744340060414,10.60331651,1537.6,1537.5,1.30169]
[1744340060825,10.60331651,1537.6,1537.4,3.88235]
[1744340061016,2.5444,1537.5,1537.4,3.88235]
[1744340061322,2.5444,1537.5,1537.3,3.21754184]
[1744340061518,1.30178,1537.4,1537.3,3.21754184]
[1744340061718,1.30178,1537.4,1536.7,3.2558]
[1744340061719,1.30201,1537.2,1536.9,13.37507572]
[1744340061913,4.5711,1537.3,1536.9,16.37759175]
[1744340062225,3.84641,1537.2,1537.0,1.30212]
[1744340062421,2.5444,1537.1,1537.0,1.30212]
[1744340062615,5.93673,1537.1,1536.9,17.18659572]
[1744340062812,4.6347,1537.1,1537.0,1.30212]
[1744340063219,4.6347,1537.1,1536.9,15.88447572]
[1744340063517,5.93675,1537.1,1537.0,1.30212]
[1744340064020,5.93675,1537.1,1536.9,17.18661572]
[1744340064325,3.64642,1537.0,1536.9,10.16727572]
[1744340067328,8.64642,1537.0,1536.9,10.16727572]
[1744340067817,3.64642,1537.0,1536.9,10.16727572]
[1744340068026,1.3022,1536.9,1536.8,0.00974184]
[1744340068228,1.3022,1536.9,1536.8,2.57014184]
[1744340068229,3.7163,1536.9,1536.8,2.57014184]
[1744340068625,3.7163,1536.9,1536.8,0.00974184]
[1744340068922,8.7163,1536.9,1536.8,0.00974184]
[1744340069231,13.7913,1536.9,1536.8,0.00974184]
[1744340070122,1.30254,1536.5,1536.4,10.16727572]
[1744340070323,1.30254,1536.5,1536.4,12.58607572]
[1744340071122,1.30254,1536.5,1536.4,10.16727572]
[1744340071331,1.30262,1536.4,1536.3,0.00974184]
[1744340071535,3.80252,1536.4,1536.3,2.42854184]
[1744340072827,3.39469,1536.5,1536.3,3.73125184]
[1744340073430,5.98439,1536.5,1536.3,3.73125184]
[1744340073724,4.6818,1536.5,1536.4,2.5332]
[1744340073929,1.30246,1536.6,1536.4,3.83577]
[1744340074228,1.30246,1536.6,1536.4,7.92537]
[1744340074428,1.30246,1536.6,1536.5,2.5332]
[1744340075027,3.89213,1536.7,1536.5,3.83571]
[1744340075328,1.30252,1536.6,1536.4,3.316]
[1744340075535,3.89222,1536.6,1536.4,5.8492]
[1744340076029,3.89222,1536.6,1536.5,2.5332]
[1744340076332,2.5897,1536.6,1536.3,3.21754184]
[1744340076533,3.64214,1536.5,1536.4,2.402]
[1744340079628,3.64214,1536.5,1536.3,3.21754184]
[1744340079629,1.30262,1536.4,1536.3,3.21754184]
[1744340079829,3.86592,1536.4,1536.3,5.74094184]
[1744340080229,2.158,1536.6,1536.3,10.74094184]
[1744340080431,3.46051,1536.6,1536.4,3.82598]
[1744340080629,3.46051,1536.6,1536.5,4.6636]
[1744340082530,3.46051,1536.6,1536.5,5.96614]
[1744340082531,2.158,1536.6,1536.5,5.96614]
[1744340082729,3.8657,1536.7,1536.5,9.17394]
[1744340082930,3.8657,1536.7,1536.6,2.5784]
[1744340083237,1.3024,1536.7,1536.6,2.5784]
[1744340087033,1.3024,1536.7,1536.6,4.5984]
[1744340088255,10.17840346,1537.0,1536.6,4.5984]
[1744340088435,1.30224,1536.9,1536.7,3.61564]
[1744340088636,4.3465,1537.0,1536.8,2.3133]
[1744340088939,1.30215,1537.0,1536.8,3.61555]
[1744340089240,1.30218,1537.0,1536.8,3.61558]
[1744340089436,14.90438346,1537.1,1536.7,3.2078]
[1744340089637,1.30229,1536.8,1536.7,3.2078]
[1744340089832,1.30229,1536.8,1536.6,2.171]
[1744340090032,1.30229,1536.8,1536.7,2.3133]
[1744340090733,1.3024,1536.7,1536.5,4.51029]
[1744340090943,1.3024,1536.7,1536.6,4.5145]
[1744340091737,4.59,1536.7,1536.5,3.2078]
[1744340091935,3.30313,1536.8,1536.6,7.97593]
[1744340092249,3.30313,1536.8,1536.7,2.3597]
[1744340092837,2.092,1537.0,1536.7,2.3597]
[1744340093039,8.0336,1537.0,1536.8,1.30224]
[1744340093236,8.0336,1537.0,1536.9,2.3597]
[1744340093846,8.0336,1537.0,1536.9,4.3387]
[1744340095744,5.94152,1537.0,1536.9,4.3387]
[1744340096837,3.44352,1537.0,1536.9,4.3387]
[1744340097042,3.44352,1537.0,1536.9,6.2918]
[1744340098144,3.44352,1537.0,1536.9,4.3387]
[1744340098347,3.44352,1537.0,1536.9,2.3597]
[1744340100349,2.1414,1537.0,1536.8,1.30223]
[1744340100544,1.30229,1536.8,1536.7,7.4046]
[1744340100749,1.30229,1536.8,1536.7,7.7661]
[1744340101248,1.30246,1536.6,1536.5,5.992]
[1744340101551,1.30246,1536.6,1536.4,3.78291]
[1744340101738,2.3038,1536.5,1536.4,3.78291]
[1744340102252,2.3038,1536.5,1536.4,2.4803]
[1744340102551,3.31816,1536.6,1536.4,3.78286]
[1744340102848,5.62196,1536.6,1536.4,3.78286]
[1744340103150,5.62201,1536.6,1536.4,3.7829]
[1744340103350,5.62201,1536.6,1536.4,3.78291]
[1744340103351,1.30254,1536.5,1536.4,3.78291]
[1744340103555,5.62202,1536.6,1536.4,3.78291]
[1744340103849,2.5082,1536.5,1536.4,3.78291]
[1744340104151,1.30237,1536.8,1536.6,1.30246]
[1744340104346,6.41183346,1536.7,1536.5,3.70221]
[1744340105054,6.41178346,1536.7,1536.5,3.70217]
[1744340105243,6.41178346,1536.7,1536.6,2.3997]
[1744340105441,7.61760346,1536.7,1536.6,3.70216]
[1744340106854,8.91997346,1536.7,1536.6,3.70216]
[1744340107152,8.91997346,1536.7,1536.6,2.3997]
[1744340107352,7.61760346,1536.7,1536.6,3.70216]
[1744340107539,5.10940346,1536.7,1536.6,7.87186]
[1744340107745,20.59622626,1536.8,1536.6,7.87182]
[1744340108053,20.59622626,1536.8,1536.7,2.2915]
[1744340108257,1.30237,1536.7,1536.6,2.1406]
[1744340108457,1.30237,1536.7,1536.6,4.4321]
[1744340109053,18.21243626,1536.8,1536.6,5.73453]
[1744340109354,1.30237,1536.7,1536.6,5.73453]
[1744340109545,1.30246,1536.6,1536.5,3.2078]
[1744340109741,1.30262,1536.4,1536.3,0.00974184]
[1744340109953,1.30262,1536.4,1536.3,2.48144184]
[1744340110551,3.38402,1536.4,1536.3,2.48144184]
[1744340111951,3.38402,1536.4,1536.3,0.00974184]
[1744340112655,12.02578606,1536.4,1536.3,0.00974184]
[1744340114564,10.72316606,1536.4,1536.3,0.00974184]
[1744340114770,12.02578606,1536.4,1536.3,2.50334184]
[1744340114954,12.02578606,1536.4,1536.3,0.00974184]
[1744340114955,17.02578606,1536.4,1536.3,0.00974184]
[1744340115267,12.02578606,1536.4,1536.3,0.00974184]
[1744340116669,22.20820792,1536.4,1536.3,0.00974184]
[1744340116862,14.54331512,1536.4,1536.3,0.00974184]
[1744340118662,19.54331512,1536.4,1536.3,0.00974184]
[1744340118864,1.30288,1536.1,1536.0,3.2078]
[1744340119267,8.31836,1536.1,1535.7,10.16727572]
[1744340119568,3.9085,1536.0,1535.7,10.16727572]
[1744340119769,1.30313,1535.8,1535.7,12.46647572]
[1744340120566,3.91824184,1536.0,1535.7,12.46647572]
[1744340120767,1.30307,1535.9,1535.8,2.2992]
[1744340121066,1.30307,1535.9,1535.8,4.353]
[1744340121267,1.30309,1535.9,1535.8,3.2078]
[1744340121567,1.30309,1535.9,1535.8,5.507]
[1744340124975,3.91824184,1536.0,1535.8,5.507]
[1744340125178,3.91824184,1536.0,1535.9,2.4617]
[1744340125376,5.22120184,1536.0,1535.9,2.4617]
[1744340125571,17.94926035,1536.0,1535.9,2.4617]
[1744340126179,12.73780035,1536.0,1535.9,3.76475]
[1744340126475,12.73780035,1536.0,1535.9,5.72975]
[1744340126771,12.73780035,1536.0,1535.9,4.4267]
[1744340127275,12.73780035,1536.0,1535.9,5.72975]
[1744340128569,12.73780035,1536.0,1535.9,15.79175]
[1744340129279,0.00974184,1536.0,1535.9,15.79175]
[1744340137284,0.00974184,1536.0,1535.9,10.79175]
[1744340140388,7.1234234,1536.4,1536.3,1.30271]
[1744340140582,7.1234234,1536.4,1536.3,4.51051]
[1744340140992,7.1234234,1536.4,1536.3,8.84271]
[1744340142186,5.0912234,1536.4,1536.3,8.84271]
[1744340142694,5.70728184,1536.5,1536.4,1.30262]
[1744340142889,5.70728184,1536.5,1536.4,3.60102]
[1744340143693,5.70728184,1536.5,1536.4,2.2984]
[1744340143888,10.70728184,1536.5,1536.4,2.2984]
[1744340144091,10.70728184,1536.5,1536.3,4.51045]
[1744340144292,2.3914,1536.4,1536.3,4.51045]
[1744340145590,2.3914,1536.4,1536.3,6.92625]
[1744340147294,3.69402,1536.4,1536.3,5.6236]
[1744340147590,3.69402,1536.4,1536.3,3.2078]
[1744340147986,2.3914,1536.4,1536.3,4.51051]
[1744340148193,3.69402,1536.4,1536.3,3.2078]
[1744340150895,3.69402,1536.4,1536.2,3.62693184]
[1744340151195,4.457,1536.3,1536.2,3.62693184]
[1744340153289,5.75971,1536.3,1536.2,3.62693184]
[1744340154499,5.75971,1536.3,1536.2,0.00974184]
[1744340158597,19.46470246,1536.3,1536.2,0.00974184]
[1744340163004,16.91909076,1536.3,1536.2,0.00974184]
[1744340163204,16.91909076,1536.3,1535.8,9.43355395]
[1744340163205,1.30305,1535.9,1535.8,3.2078]
[1744340163397,1.30314,1535.8,1535.6,10.05803395]
[1744340163601,2.0975,1535.7,1535.6,12.04045]
[1744340163801,4.5132,1535.7,1535.6,12.04045]
[1744340164004,4.5132,1535.7,1535.5,25.37693484]
[1744340164199,3.719,1535.6,1535.5,25.36379171]
[1744340164705,8.773,1535.6,1535.5,25.36379171]
[1744340164905,11.9808,1535.6,1535.5,25.36379171]
[1744340165605,16.9808,1535.6,1535.5,25.36379171]
[1744340166305,16.9808,1535.6,1535.5,22.14229171]
[1744340166501,16.9808,1535.6,1535.5,16.34447528]
[1744340167298,16.9808,1535.6,1535.5,15.20347528]
[1744340167694,1.30339,1535.5,1535.4,9.12294105]
[1744340167999,1.30347,1535.4,1535.3,18.64833388]
[1744340168194,3.25912,1535.2,1534.7,10.21943081]
[1744340168403,1.30398,1534.8,1534.7,12.64213081]
[1744340169002,3.69762184,1534.9,1534.7,12.64213081]
[1744340169211,3.68788,1534.8,1534.7,10.21943081]
[1744340169608,5.82918,1534.8,1534.7,10.21943081]
[1744340169903,9.03698,1534.8,1534.7,8.96951081]
[1744340170110,10.87418,1534.8,1534.7,8.96951081]
[1744340171204,5.82918,1534.8,1534.7,8.96951081]
[1744340171596,4.5252,1534.8,1534.7,8.96951081]
[1744340171804,3.68788,1534.8,1534.7,12.17731081]
[1744340172001,3.68788,1534.8,1534.7,14.65661081]
[1744340173309,2.3839,1534.8,1534.7,14.65661081]
[1744340173604,3.68788,1534.8,1534.7,14.65661081]
[1744340173811,12.26192099,1534.8,1534.7,5.6871]
[1744340174012,10.95794099,1534.8,1534.7,5.6871]
[1744340174209,8.57404099,1534.8,1534.7,6.99117]
[1744340174513,8.57404099,1534.8,1534.7,9.01197]
[1744340174911,8.57404099,1534.8,1534.7,7.7079]
[1744340175213,9.87802099,1534.8,1534.7,7.7079]
[1744340175714,8.57404099,1534.8,1534.7,7.7079]
[1744340175909,8.57404099,1534.8,1534.7,9.01197]
[1744340176313,8.57404099,1534.8,1534.7,7.7079]
[1744340176512,8.57404099,1534.8,1534.7,9.01197]
[1744340178707,1.30398,1534.8,1534.7,4.5001]
[1744340178909,2.4962,1534.8,1534.7,4.98467445]
[1744340179213,3.80018,1534.8,1534.7,4.98467445]
[1744340179416,2.4962,1534.8,1534.7,4.98467445]
[1744340179820,3.80018,1534.8,1534.7,4.98467445]
[1744340180115,3.80018,1534.8,1534.7,4.5001]
[1744340180314,2.4962,1534.8,1534.7,5.80417]
[1744340180513,2.4962,1534.8,1534.7,4.5001]
[1744340180816,0.00974184,1534.9,1534.7,5.80417]
[1744340181008,0.00974184,1534.9,1534.8,1.30398]
[1744340181209,0.00974184,1534.9,1534.8,3.63998]
[1744340182318,0.00974184,1534.9,1534.6,6.61409757]
[1744340182514,0.00974184,1534.9,1534.8,1.30398]
[1744340183208,0.00974184,1534.9,1534.7,1.30399]
[1744340183408,0.00974184,1534.9,1534.8,1.30398]
[1744340184403,0.00974184,1534.9,1534.6,8.2558]
[1744340184609,0.00974184,1534.9,1534.8,1.30398]
[1744340185111,0.00974184,1534.9,1534.7,1.304]
[1744340185421,1.31367184,1534.9,1534.8,4.2075]
[1744340185809,3.70767184,1534.9,1534.8,4.2075]
[1744340186314,2.40374184,1534.9,1534.8,5.51148]
[1744340186509,0.00974184,1534.9,1534.8,5.51148]
[1744340188118,0.00974184,1534.9,1534.8,13.71928]
[1744340188523,13.46991901,1535.5,1535.3,1.30356]
[1744340188819,15.94291901,1535.5,1535.3,1.30356]
[1744340189014,10.89391901,1535.5,1535.4,2.3622]
[1744340190322,5.04086901,1535.5,1535.4,7.3622]
[1744340190622,5.04086901,1535.5,1535.4,16.92247]
[1744340190821,5.04086901,1535.5,1535.4,8.71467]
[1744340191011,5.04086901,1535.5,1535.4,10.75667]
[1744340191216,0.00974184,1535.6,1535.5,1.30339]
[1744340191416,0.00974184,1535.6,1535.5,3.66559]
[1744340192323,0.00974184,1535.6,1535.5,2.3622]
[1744340192714,3.75601184,1535.6,1535.4,5.2498]
[1744340193019,2.4429,1535.5,1535.4,2.042]
[1744340193224,3.74629,1535.5,1535.4,2.042]
[1744340193624,2.4429,1535.5,1535.4,2.042]
[1744340193811,2.4429,1535.5,1535.4,4.3873]
[1744340194618,0.00974184,1535.6,1535.5,1.30339]
[1744340194819,0.00974184,1535.6,1535.5,3.64869]
[1744340197024,6.34386901,1536.0,1535.8,1.30311]
[1744340197321,6.34386901,1536.0,1535.5,12.3853]
[1744340197322,8.82938588,1536.0,1535.9,2.2899]
[1744340198019,8.82938588,1536.0,1535.8,1.30309]
[1744340198225,1.30313,1535.8,1535.7,1.9895]
[1744340198619,1.30313,1535.8,1535.6,6.5257]
[1744340198823,2.4544,1535.7,1535.6,5.2224]
[1744340199324,2.4544,1535.7,1535.6,6.5257]
[1744340199527,3.21754184,1536.1,1535.6,7.507]
[1744340199724,5.76,1536.0,1535.7,3.58778]
[1744340199920,2.4544,1535.9,1535.8,1.30313]
[1744340200230,2.4544,1535.9,1535.8,3.58773]
[1744340200831,1.30313,1535.8,1535.6,3.2078]
[1744340201022,3.75762,1535.7,1535.6,3.2078]
[1744340201224,5.76812,1535.7,1535.6,3.2078]
[1744340201522,4.4649,1535.7,1535.6,3.2078]
[1744340201723,4.4649,1535.7,1535.6,4.5111]
[1744340202635,4.4649,1535.7,1535.6,3.2078]
[1744340203024,4.4649,1535.7,1535.5,3.76385]
[1744340203235,2.0105,1535.7,1535.5,2.4605]
[1744340203422,2.1083,1535.8,1535.6,1.29015687]
[1744340203623,2.09515687,1535.8,1535.7,1.30322]
[1744340203825,5.2183,1535.9,1535.7,1.30322]
[1744340204132,6.52137,1535.9,1535.7,1.30322]
[1744340204431,1.30318,1535.8,1535.5,3.76383]
[1744340205433,5.2183,1535.9,1535.6,1.30329]
[1744340205635,1.3032,1535.8,1535.5,3.76383]
[1744340205837,1.3032,1535.8,1535.6,1.30328]
[1744340206027,6.52141,1535.9,1535.6,1.30328]
[1744340206730,1.9662,1535.8,1535.6,1.30328]
[1744340207032,3.26934,1535.8,1535.6,1.30328]
[1744340207737,1.9662,1535.8,1535.7,1.30322]
[1744340208033,1.9662,1535.8,1535.6,1.30324]
[1744340208734,1.9662,1535.8,1535.7,1.30322]
[1744340209635,1.9662,1535.8,1535.6,1.30324]
[1744340210533,6.52135,1535.9,1535.7,1.30322]
[1744340211835,6.52135,1535.9,1535.6,1.30324]
[1744340212037,7.59710704,1536.0,1535.8,3.2078]
[1744340212241,7.59710704,1536.0,1535.9,1.30305]
[1744340212431,7.59710704,1536.0,1535.9,5.61195]
[1744340213634,8.90006704,1536.0,1535.9,4.3089]
[1744340213940,7.59710704,1536.0,1535.9,5.61195]
[1744340217241,0.00974184,1536.1,1536.0,1.30296]
[1744340217641,2.41924184,1536.1,1536.0,1.30296]
[1744340219443,2.41924184,1536.1,1536.0,3.76156]
[1744340220037,0.00974184,1536.1,1536.0,3.76156]
[1744340220345,0.00974184,1536.1,1536.0,5.72156]
[1744340220542,4.32614184,1536.1,1535.9,3.28368]
[1744340220845,2.3172,1536.0,1535.9,3.28368]
[1744340221045,1.30317,1535.8,1535.6,6.34229]
[1744340221245,2.3172,1535.7,1535.6,6.34229]
[1744340221445,2.3172,1535.7,1535.6,3.76189]
[1744340221946,2.3172,1535.7,1535.5,3.29665]
[1744340222246,1.30339,1535.5,1535.4,5.992]
[1744340222446,3.36552,1535.6,1535.4,2.3232]
[1744340222745,2.425,1535.5,1535.3,7.06234184]
[1744340222945,4.4613,1535.5,1535.3,8.36587184]
[1744340223140,1.30347,1535.4,1535.3,0.00974184]
[1744340223351,3.72847,1535.4,1535.3,0.00974184]
[1744340223945,8.72847,1535.4,1535.3,0.00974184]
[1744340224141,1.30376,1535.1,1534.8,1.79739282]
[1744340224447,1.30371,1535.2,1534.8,3.62712]
[1744340224647,3.72873,1535.1,1534.8,3.62712]
[1744340224848,2.425,1535.0,1534.8,3.62712]
[1744340225253,2.425,1535.0,1534.9,1.3039]
[1744340225951,2.425,1535.0,1534.8,5.60434]
[1744340226247,2.425,1535.0,1534.8,8.81214]
[1744340226449,2.425,1535.0,1534.8,5.60434]
[1744340226650,0.00974184,1535.1,1534.9,4.5117]
[1744340226949,0.00974184,1535.1,1534.9,3.7142]
[1744340227145,3.76108184,1535.1,1534.8,3.28113]
[1744340227346,1.3039,1534.9,1534.7,0.00974184]
[1744340227546,2.4476,1534.8,1534.7,0.00974184]
[1744340228544,2.4476,1534.8,1534.7,2.36974184]
[1744340229456,2.4476,1534.8,1534.7,3.67381184]
[1744340230656,4.52130184,1535.1,1534.8,1.30398]
[1744340230951,2.3142,1534.9,1534.8,3.66398]
[1744340231146,3.21754184,1535.1,1534.9,1.30384]
[1744340231349,10.81464888,1535.1,1534.9,3.66384]
[1744340231646,13.11014888,1535.1,1534.9,3.66384]
[1744340231842,13.10884848,1535.1,1534.9,3.66384]
[1744340232055,9.90104848,1535.1,1534.9,3.66384]
[1744340232253,9.90104848,1535.1,1535.0,1.30381]
[1744340232453,7.60554848,1535.1,1535.0,6.89511]
[1744340232651,7.60554848,1535.1,1535.0,16.92811]
[1744340233753,7.60554848,1535.1,1535.0,11.92811]
[1744340233955,7.60554848,1535.1,1535.0,16.92811]
[1744340234660,0.00844144,1535.1,1535.0,16.92811]
[1744340237465,0.00844144,1535.1,1535.0,22.92011]
[1744340237658,2.3858,1535.4,1535.3,1.30356]
[1744340237866,7.59710704,1535.5,1535.4,1.30347]
[1744340238064,7.59710704,1535.5,1535.4,5.71927]
[1744340239170,10.03194888,1535.6,1535.5,1.30339]
[1744340240566,11.33524888,1535.6,1535.4,3.34371]
[1744340240766,3.75091,1535.5,1535.3,6.33552]
[1744340240968,2.4475,1535.4,1535.3,6.33552]
[1744340241562,12.11802888,1535.6,1535.4,1.30345]
[1744340241768,15.72985766,1536.0,1535.9,1.30305]
[1744340241769,15.2227065,1536.0,1535.9,1.30305]
[1744340241962,15.20956337,1536.0,1535.9,4.51085]
[1744340242157,15.20956337,1536.0,1535.9,9.54285]
[1744340243675,2.45724184,1536.1,1536.0,1.30296]
[1744340244865,2.0465,1536.4,1536.0,8.58086]
[1744340245067,1.30262,1536.4,1536.3,3.2078]
[1744340245371,3.74417,1536.3,1536.0,4.51074]
[1744340245568,4.5134,1536.2,1536.0,3.2078]
[1744340245878,3.74428,1536.1,1536.0,3.2078]
[1744340246379,8.74428,1536.1,1536.0,3.2078]
[1744340248185,9.72147526,1536.1,1536.0,3.2078]
[1744340248687,3.41859526,1536.1,1536.0,3.2078]
[1744340248883,3.41859526,1536.1,1536.0,4.51076]
[1744340250586,0.97719526,1536.1,1536.0,11.86276]
[1744340250786,0.00974184,1536.3,1536.2,1.30279]
[1744340250987,0.00974184,1536.3,1536.2,4.51059]
[1744340251386,0.00974184,1536.3,1536.2,6.62509]
[1744340252384,17.66674821,1536.9,1536.2,17.61709]
[1744340252687,7.79753,1536.8,1536.6,3.2078]
[1744340252888,2.4925,1536.7,1536.6,3.2078]
[1744340253689,3.79487,1536.7,1536.6,3.2078]
[1744340254183,8.79487,1536.7,1536.6,3.2078]
[1744340254588,2.4925,1536.7,1536.6,3.2078]
[1744340254885,2.4925,1536.7,1536.6,4.51026]
[1744340255284,2.4925,1536.7,1536.5,1.31224184]
[1744340255488,1.30246,1536.6,1536.5,0.52676675]
[1744340255791,3.79491,1536.7,1536.5,0.00974184]
[1744340256281,2.4546,1536.6,1536.5,0.00974184]
[1744340256480,2.4546,1536.6,1536.5,1.31228184]
[1744340257790,4.07744184,1536.8,1536.5,0.00974184]
[1744340258084,4.07744184,1536.8,1536.7,3.2078]
[1744340258283,5.37973184,1536.8,1536.7,3.2078]
[1744340261493,4.07744184,1536.8,1536.7,3.2078]
[1744340261889,1.97334184,1536.8,1536.7,4.51017]
[1744340262089,1.97334184,1536.8,1536.7,6.79797]
[1744340263903,1.97334184,1536.8,1536.7,5.4956]
[1744340264292,1.97334184,1536.8,1536.7,3.2078]
[1744340266497,1.97334184,1536.8,1536.7,4.51017]
[1744340266894,1.97334184,1536.8,1536.7,1.30237]
[1744340267099,1.97334184,1536.8,1536.7,3.2078]
[1744340268200,3.27563184,1536.8,1536.7,3.2078]
[1744340269595,1.97334184,1536.8,1536.5,7.25344184]
[1744340269802,1.30246,1536.6,1536.5,2.06634184]
[1744340270601,3.25774,1536.7,1536.5,0.00974184]
[1744340271101,1.30246,1536.6,1536.5,0.00974184]
[1744340271899,6.30246,1536.6,1536.5,0.00974184]
[1744340273199,9.51026,1536.6,1536.5,0.00974184]
[1744340273406,1.30292,1536.1,1536.0,3.2078]
[1744340273998,1.30299,1536.0,1535.8,5.1117]
[1744340274197,1.30305,1535.9,1535.7,2.0544]
[1744340274399,3.25784,1535.8,1535.6,0.00974184]
[1744340274604,1.30322,1535.7,1535.6,1.84e-06]
[1744340274799,6.46606,1535.7,1535.1,5.322]
[1744340274998,1.30353,1535.4,1535.1,5.30885687]
[1744340275303,1.30358,1535.3,1535.1,5.30885687]
[1744340275499,6.32653,1535.4,1535.1,6.61258687]
[1744340275704,6.32653,1535.4,1535.3,3.2078]
[1744340275905,6.32653,1535.4,1535.1,7.63319871]
[1744340276407,6.32653,1535.4,1535.1,8.93691871]
[1744340276703,5.023,1535.4,1535.1,7.63319871]
[1744340276902,5.023,1535.4,1535.2,3.61823]
[1744340277302,5.023,1535.4,1535.3,3.2078]
[1744340277706,1.30337,1535.6,1535.3,3.2078]
[1744340277901,2.3264,1535.5,1535.4,1.30347]
[1744340278112,2.3264,1535.5,1535.4,3.2078]
[1744340278301,8.31669,1535.8,1535.4,4.51127]
[1744340278601,2.3264,1535.7,1535.5,3.60369]
[1744340278795,0.00974184,1536.0,1535.5,11.5001]
[1744340278994,5.66685,1536.2,1536.0,0.00340129]
[1744340279196,5.66685,1536.2,1536.0,3.21120129]
[1744340279399,2.32299871,1536.1,1536.0,3.2078]
[1744340279599,2.32299871,1536.1,1536.0,4.51076]
[1744340279795,8.26235,1536.4,1536.1,1.30288]
[1744340280003,7.0626,1536.6,1536.3,3.2078]
[1744340280197,0.00974184,1536.4,1536.3,4.51048]
[1744340280403,0.00974184,1536.4,1536.3,3.2078]
[1744340281106,0.00974184,1536.4,1536.3,4.51051]
[1744340281609,0.00974184,1536.4,1536.3,9.51051]
[1744340283907,0.00974184,1536.4,1536.3,4.51051]
[1744340284098,1.31236184,1536.4,1536.3,3.2078]
[1744340284900,3.64796184,1536.4,1536.3,3.2078]
[1744340286114,1.30279,1536.2,1536.1,0.00974184]
[1744340286310,1.30273,1536.3,1536.1,0.00974184]
[1744340286513,2.3744,1536.2,1536.1,0.00974184]
[1744340286708,0.00974184,1536.4,1536.1,1.31262184]
[1744340286909,2.38414184,1536.4,1536.3,3.2078]
[1744340287126,3.68676184,1536.4,1536.3,3.2078]
[1744340288315,2.38414184,1536.4,1536.3,3.2078]
[1744340288516,3.68676184,1536.4,1536.3,3.2078]
[1744340288814,2.38414184,1536.4,1536.3,3.2078]
[1744340289319,3.68676184,1536.4,1536.3,3.2078]
[1744340289617,2.38414184,1536.4,1536.3,3.2078]
[1744340289818,1.31236184,1536.4,1536.3,3.2078]
[1744340290118,0.00974184,1536.4,1536.3,3.2078]
[1744340290510,0.00974184,1536.4,1536.3,4.51051]
[1744340291219,0.00974184,1536.4,1536.3,3.2078]
[1744340291521,0.00974184,1536.4,1536.3,4.51051]
[1744340292317,0.00974184,1536.4,1536.3,3.2078]
[1744340292516,1.30273,1536.3,1536.1,3.21754184]
[1744340292719,2.2375,1536.2,1536.1,3.21754184]
[1744340293115,2.2375,1536.2,1536.1,4.52042184]
[1744340294322,3.54029,1536.2,1536.1,3.21754184]
[1744340294625,3.54029,1536.2,1536.1,0.00974184]
[1744340294816,8.54029,1536.2,1536.1,0.00974184]
[1744340297218,3.54029,1536.2,1536.1,0.00974184]
[1744340297716,8.54029,1536.2,1536.1,0.00974184]
[1744340298717,1.30313,1535.8,1535.7,7.4967]
[1744340298922,1.30335,1535.6,1535.4,5.185]
[1744340299222,3.25768,1535.9,1535.4,5.185]
[1744340299223,1.30339,1535.5,1535.4,5.185]
[1744340299412,10.71922,1535.7,1535.2,5.3253]
[1744340299608,1.30356,1535.3,1535.2,5.3253]
[1744340301820,1.30356,1535.3,1535.2,2.1175]
[1744340302217,1.30364,1535.2,1535.1,2.37314184]
[1744340303021,3.72084,1535.2,1535.1,2.37314184]
[1744340304031,3.72084,1535.2,1535.1,0.00974184]
[1744340304326,3.72084,1535.2,1535.1,3.21754184]
[1744340304522,1.3039,1534.9,1534.8,3.2078]
[1744340304829,1.30398,1534.8,1534.7,5.5907]
[1744340305729,1.30397,1534.9,1534.7,5.5907]
[1744340306122,2.5642,1535.0,1534.7,5.5907]
[1744340306123,1.30398,1534.8,1534.7,5.5907]
[1744340306831,1.30398,1534.8,1534.7,3.2078]
[1744340307529,1.30407,1534.7,1534.6,6.51334184]
[1744340308035,2.5642,1534.8,1534.7,1.30407]
[1744340308036,0.0097739,1534.8,1534.7,1.30407]
[1744340308231,0.0097739,1534.8,1534.7,6.93957]
[1744340308426,0.0097739,1534.8,1534.7,11.93957]
[1744340308933,0.0097739,1534.8,1534.7,10.6355]
[1744340309237,0.0097739,1534.8,1534.7,5.6355]
[1744340309533,0.0097739,1534.8,1534.7,6.93957]
[1744340309833,0.0097739,1534.8,1534.7,11.93957]
[1744340310033,0.0097739,1534.8,1534.7,6.93957]
[1744340310535,0.0097739,1534.8,1534.7,11.93957]
[1744340313235,0.0097739,1534.8,1534.7,6.93957]
[1744340313427,0.0097739,1534.8,1534.7,11.93957]
[1744340313634,0.0097739,1534.8,1534.7,17.93157]
[1744340316136,1.30332,1535.6,1534.8,3.25996]
[1744340316337,3.63902,1535.6,1535.5,3.2078]
[1744340316839,3.639,1535.6,1535.5,3.2078]
[1744340317734,2.3357,1535.6,1535.5,3.2078]
[1744340318133,2.3357,1535.6,1535.5,5.6304]
[1744340318844,3.639,1535.6,1535.5,3.2078]
[1744340319136,3.639,1535.6,1535.4,0.0097739]
[1744340319137,1.30339,1535.5,1535.4,3.2175739]
[1744340319339,3.68469,1535.5,1535.4,3.2175739]
[1744340319642,2.3813,1535.5,1535.4,3.2175739]
[1744340319938,2.3813,1535.5,1535.4,4.5210439]
[1744340320233,3.68469,1535.5,1535.4,3.2175739]
[1744340320439,2.3813,1535.5,1535.4,3.2175739]
[1744340321138,2.3813,1535.5,1535.4,4.5210439]
[1744340321939,3.68469,1535.5,1535.4,0.0097739]
[1744340322133,8.68469,1535.5,1535.4,0.0097739]
[1744340322936,8.68469,1535.5,1534.8,5.58065]
[1744340322937,1.30388,1535.0,1534.8,3.2078]
[1744340323137,4.691,1534.9,1534.8,3.2078]
[1744340325840,5.9949,1534.9,1534.8,3.2078]
[1744340326439,4.691,1534.9,1534.8,3.2078]